[Event "Titled Tuesday Blitz April 11 Early 2023"]
[White "Le, Tuan Minh"]
[Black "Belov, Alexei"]
[WhiteFideId "12401153"]
[BlackFideId "4128206"]
[WhiteElo "2566"]
[BlackElo "2648"]
[Result "1-0"]
[Round "02"]
[TimeControl "180+2"]
[Date "2023.04.11"]
[WhiteClock "0:00:56"]
[BlackClock "0:00:32"]

1. d4 {[%clk 0:03:00]}  e6 {[%clk 0:03:00]} 2. Nf3 {[%clk 0:03:00]}  d5 {[%clk 0:02:58]} 3. Bf4 {[%clk 0:03:01]}  Bd6 {[%clk 0:02:57]} 4. Bg3 {[%clk 0:02:58]}  Ne7 {[%clk 0:02:56]} 5. e3 {[%clk 0:02:57]}  b6 {[%clk 0:02:56]} 6. c4 {[%clk 0:02:56]}  Bxg3 {[%clk 0:02:51]} 7. hxg3 {[%clk 0:02:56]}  Bb7 {[%clk 0:02:46]} 8. Nc3 {[%clk 0:02:55]}  Nd7 {[%clk 0:02:45]} 9. Rc1 {[%clk 0:02:54]}  c5 {[%clk 0:02:44]} 10. cxd5 {[%clk 0:02:50]}  Nxd5 {[%clk 0:02:43]} 11. Bd3 {[%clk 0:02:51]}  h6 {[%clk 0:02:32]} 12. Bb1 {[%clk 0:02:43]}  Rc8 {[%clk 0:02:21]} 13. Nb5 {[%clk 0:02:37]}  O-O {[%clk 0:02:07]} 14. Nd6 {[%clk 0:02:29]}  Rb8 {[%clk 0:02:04]} 15. Nxb7 {[%clk 0:02:22]}  Rxb7 {[%clk 0:02:04]} 16. Qd3 {[%clk 0:02:23]}  f5 {[%clk 0:02:00]} 17. O-O {[%clk 0:02:17]}  Qe7 {[%clk 0:01:57]} 18. e4 {[%clk 0:02:05]}  fxe4 {[%clk 0:01:40]} 19. Qxe4 {[%clk 0:02:06]}  N7f6 {[%clk 0:01:40]} 20. Qe2 {[%clk 0:02:03]}  Rc7 {[%clk 0:01:06]} 21. dxc5 {[%clk 0:01:59]}  Rxc5 {[%clk 0:01:03]} 22. Rxc5 {[%clk 0:01:59]}  bxc5 {[%clk 0:01:03]} 23. Re1 {[%clk 0:01:59]}  Re8 {[%clk 0:01:00]} 24. Ne5 {[%clk 0:01:41]}  Qd6 {[%clk 0:00:51]} 25. Bg6 {[%clk 0:01:29]}  Re7 {[%clk 0:00:50]} 26. b3 {[%clk 0:01:07]}  Nb4 {[%clk 0:00:42]} 27. Nc4 {[%clk 0:01:00]}  Qa6 {[%clk 0:00:36]} 28. a3 {[%clk 0:00:59]}  Nc6 {[%clk 0:00:35]} 29. Rd1 {[%clk 0:00:57]}  Nd4 {[%clk 0:00:35]} 30. Qe5 {[%clk 0:00:57]}  Qb5 {[%clk 0:00:32]} 31. Rxd4 {[%clk 0:00:56]} 1-0


[Site "https://www.chess.com"]

[Event "Titled Tuesday Blitz April 11 Early 2023"]
[White "Hakobyan, Aram"]
[Black "Papp, Levente"]
[WhiteFideId "13306677"]
[BlackFideId "751243"]
[WhiteElo "2584"]
[BlackElo "2380"]
[Result "1-0"]
[Round "02"]
[TimeControl "180+2"]
[Date "2023.04.11"]
[WhiteClock "0:00:16"]
[BlackClock "0:00:08"]

1. d4 {[%clk 0:03:00]}  Nf6 {[%clk 0:02:57]} 2. c4 {[%clk 0:03:01]}  b6 {[%clk 0:02:58]} 3. Nc3 {[%clk 0:03:00]}  Bb7 {[%clk 0:02:57]} 4. Qc2 {[%clk 0:03:01]}  d6 {[%clk 0:02:44]} 5. e4 {[%clk 0:03:01]}  g6 {[%clk 0:02:45]} 6. Be2 {[%clk 0:03:01]}  Bg7 {[%clk 0:02:45]} 7. Nf3 {[%clk 0:03:02]}  e5 {[%clk 0:02:44]} 8. d5 {[%clk 0:02:54]}  a5 {[%clk 0:02:42]} 9. O-O {[%clk 0:02:53]}  O-O {[%clk 0:02:41]} 10. Ne1 {[%clk 0:02:52]}  Nfd7 {[%clk 0:02:40]} 11. Nd3 {[%clk 0:02:50]}  Na6 {[%clk 0:02:38]} 12. a3 {[%clk 0:02:47]}  Nac5 {[%clk 0:02:34]} 13. Rb1 {[%clk 0:02:45]}  a4 {[%clk 0:02:32]} 14. Be3 {[%clk 0:02:44]}  Nb3 {[%clk 0:02:18]} 15. Nxa4 {[%clk 0:02:35]}  Nd4 {[%clk 0:02:18]} 16. Bxd4 {[%clk 0:02:36]}  exd4 {[%clk 0:02:19]} 17. b4 {[%clk 0:02:33]}  Qe7 {[%clk 0:02:08]} 18. c5 {[%clk 0:02:26]}  bxc5 {[%clk 0:01:26]} 19. bxc5 {[%clk 0:02:26]}  Ba6 {[%clk 0:01:27]} 20. c6 {[%clk 0:01:31]}  Bxd3 {[%clk 0:01:26]} 21. Bxd3 {[%clk 0:01:30]}  Ne5 {[%clk 0:01:26]} 22. Bb5 {[%clk 0:01:13]}  Rfb8 {[%clk 0:01:13]} 23. h3 {[%clk 0:01:10]}  Ra5 {[%clk 0:01:01]} 24. Bc4 {[%clk 0:01:01]}  Rxb1 {[%clk 0:00:54]} 25. Rxb1 {[%clk 0:01:02]}  Nxc4 {[%clk 0:00:55]} 26. Qxc4 {[%clk 0:00:59]}  Qxe4 {[%clk 0:00:55]} 27. Rb8+ {[%clk 0:00:57]}  Bf8 {[%clk 0:00:55]} 28. Nb6 {[%clk 0:00:49]}  Kg7 {[%clk 0:00:31]} 29. Nd7 {[%clk 0:00:48]}  Be7 {[%clk 0:00:27]} 30. Qb4 {[%clk 0:00:31]}  Rxd5 {[%clk 0:00:20]} 31. Re8 {[%clk 0:00:31]}  Qe6 {[%clk 0:00:15]} 32. Qb3 {[%clk 0:00:20]}  d3 {[%clk 0:00:15]} 33. Rxe7 {[%clk 0:00:19]}  d2 {[%clk 0:00:13]} 34. Qc3+ {[%clk 0:00:12]}  Kh6 {[%clk 0:00:13]} 35. Rxe6 {[%clk 0:00:12]}  d1=Q+ {[%clk 0:00:13]} 36. Re1 {[%clk 0:00:13]}  Qd2 {[%clk 0:00:07]} 37. Qxd2+ {[%clk 0:00:13]}  Rxd2 {[%clk 0:00:07]} 38. Ra1 {[%clk 0:00:13]}  Rc2 {[%clk 0:00:07]} 39. a4 {[%clk 0:00:14]}  Rxc6 {[%clk 0:00:08]} 40. a5 {[%clk 0:00:15]}  Ra6 {[%clk 0:00:08]} 41. Nb8 {[%clk 0:00:16]}  Ra8 {[%clk 0:00:08]} 42. Nc6 {[%clk 0:00:16]} 1-0


[Site "https://www.chess.com"]

[Event "Titled Tuesday Blitz April 11 Early 2023"]
[White "Megalios, Konstantinos"]
[Black "Paravyan, David"]
[WhiteFideId "4238044"]
[BlackFideId "4194985"]
[WhiteElo "2277"]
[BlackElo "2563"]
[Result "0-1"]
[Round "02"]
[TimeControl "180+2"]
[Date "2023.04.11"]
[WhiteClock "0:00:03"]
[BlackClock "0:01:28"]

1. Nf3 {[%clk 0:02:55]}  Nf6 {[%clk 0:02:59]} 2. c4 {[%clk 0:02:52]}  c5 {[%clk 0:03:00]} 3. d4 {[%clk 0:02:51]}  cxd4 {[%clk 0:02:59]} 4. Nxd4 {[%clk 0:02:52]}  Nc6 {[%clk 0:03:00]} 5. Nc3 {[%clk 0:02:48]}  e6 {[%clk 0:02:54]} 6. a3 {[%clk 0:02:48]}  Be7 {[%clk 0:02:50]} 7. e4 {[%clk 0:02:43]}  O-O {[%clk 0:02:50]} 8. Nf3 {[%clk 0:02:38]}  Qa5 {[%clk 0:02:49]} 9. Bd2 {[%clk 0:02:33]}  Qh5 {[%clk 0:02:38]} 10. Be2 {[%clk 0:02:27]}  d5 {[%clk 0:02:32]} 11. cxd5 {[%clk 0:02:17]}  exd5 {[%clk 0:02:33]} 12. exd5 {[%clk 0:02:13]}  Nxd5 {[%clk 0:02:33]} 13. Nd4 {[%clk 0:01:51]}  Qe5 {[%clk 0:02:32]} 14. Nxd5 {[%clk 0:01:34]}  Qxd5 {[%clk 0:01:59]} 15. Nxc6 {[%clk 0:01:30]}  Qxc6 {[%clk 0:02:00]} 16. Bf3 {[%clk 0:01:09]}  Qe6+ {[%clk 0:01:56]} 17. Qe2 {[%clk 0:01:02]}  Qxe2+ {[%clk 0:01:56]} 18. Kxe2 {[%clk 0:01:00]}  Bf6 {[%clk 0:01:56]} 19. Be3 {[%clk 0:00:50]}  Bxb2 {[%clk 0:01:54]} 20. Ra2 {[%clk 0:00:44]}  Bf6 {[%clk 0:01:53]} 21. Rb1 {[%clk 0:00:43]}  Be6 {[%clk 0:01:50]} 22. Rd2 {[%clk 0:00:33]}  Bc3 {[%clk 0:01:48]} 23. Rd6 {[%clk 0:00:25]}  Bc4+ {[%clk 0:01:46]} 24. Kd1 {[%clk 0:00:23]}  Rad8 {[%clk 0:01:46]} 25. Rxd8 {[%clk 0:00:19]}  Rxd8+ {[%clk 0:01:47]} 26. Kc1 {[%clk 0:00:18]}  b6 {[%clk 0:01:45]} 27. Be4 {[%clk 0:00:15]}  Bd4 {[%clk 0:01:39]} 28. Bxd4 {[%clk 0:00:12]}  Rxd4 {[%clk 0:01:40]} 29. f3 {[%clk 0:00:11]}  Be6 {[%clk 0:01:35]} 30. Kc2 {[%clk 0:00:09]}  Kf8 {[%clk 0:01:31]} 31. Kc3 {[%clk 0:00:06]}  Rc4+ {[%clk 0:01:32]} 32. Kd3 {[%clk 0:00:07]}  Ra4 {[%clk 0:01:31]} 33. Ra1 {[%clk 0:00:06]}  Ke7 {[%clk 0:01:30]} 34. Bc6 {[%clk 0:00:05]}  Ra5 {[%clk 0:01:28]} 35. a4 {[%clk 0:00:03]}  Bd7 {[%clk 0:01:28]} 0-1


[Site "https://www.chess.com"]

[Event "Titled Tuesday Blitz April 11 Early 2023"]
[White "Vidit, Santosh Gujrathi"]
[Black "Vaibhav Jayant Raut"]
[WhiteFideId "5029465"]
[BlackFideId "5089034"]
[WhiteElo "2651"]
[BlackElo "2156"]
[Result "1-0"]
[Round "02"]
[TimeControl "180+2"]
[Date "2023.04.11"]
[WhiteClock "0:00:30"]
[BlackClock "0:00:02"]

1. e4 {[%clk 0:03:00]}  c5 {[%clk 0:02:59]} 2. Nf3 {[%clk 0:03:00]}  Nc6 {[%clk 0:02:58]} 3. Bb5 {[%clk 0:02:59]}  g6 {[%clk 0:02:56]} 4. O-O {[%clk 0:02:58]}  Bg7 {[%clk 0:02:56]} 5. Re1 {[%clk 0:02:59]}  Nf6 {[%clk 0:02:56]} 6. c3 {[%clk 0:02:56]}  O-O {[%clk 0:02:56]} 7. d4 {[%clk 0:02:55]}  cxd4 {[%clk 0:02:57]} 8. cxd4 {[%clk 0:02:55]}  d5 {[%clk 0:02:57]} 9. e5 {[%clk 0:02:55]}  Ne4 {[%clk 0:02:58]} 10. Nc3 {[%clk 0:02:48]}  Nxc3 {[%clk 0:02:56]} 11. bxc3 {[%clk 0:02:49]}  Na5 {[%clk 0:02:57]} 12. Bd3 {[%clk 0:02:40]}  Bd7 {[%clk 0:02:45]} 13. Bf4 {[%clk 0:02:29]}  Rc8 {[%clk 0:02:43]} 14. Rc1 {[%clk 0:02:29]}  Nc4 {[%clk 0:02:39]} 15. Qe2 {[%clk 0:02:27]}  Qa5 {[%clk 0:02:30]} 16. Ng5 {[%clk 0:02:23]}  e6 {[%clk 0:02:14]} 17. h4 {[%clk 0:02:18]}  h6 {[%clk 0:01:40]} 18. Nh3 {[%clk 0:02:14]}  Qd8 {[%clk 0:01:37]} 19. Qg4 {[%clk 0:02:07]}  f5 {[%clk 0:00:52]} 20. exf6 {[%clk 0:01:23]}  Qxf6 {[%clk 0:00:46]} 21. Bxg6 {[%clk 0:01:11]}  Rcd8 {[%clk 0:00:21]} 22. Qg3 {[%clk 0:01:03]}  e5 {[%clk 0:00:14]} 23. dxe5 {[%clk 0:00:57]}  Qb6 {[%clk 0:00:15]} 24. e6 {[%clk 0:00:42]}  Bxe6 {[%clk 0:00:13]} 25. Bc7 {[%clk 0:00:42]}  Qc6 {[%clk 0:00:08]} 26. Bxd8 {[%clk 0:00:42]}  Rxd8 {[%clk 0:00:09]} 27. Nf4 {[%clk 0:00:40]}  Bf7 {[%clk 0:00:04]} 28. Re7 {[%clk 0:00:33]}  Bxg6 {[%clk 0:00:03]} 29. Nxg6 {[%clk 0:00:32]}  Qf6 {[%clk 0:00:02]} 30. Rce1 {[%clk 0:00:32]}  Nd6 {[%clk 0:00:02]} 31. R7e6 {[%clk 0:00:30]} 1-0


[Site "https://www.chess.com"]

[Event "Titled Tuesday Blitz April 11 Early 2023"]
[White "Zarubitski, Viachaslau"]
[Black "Korobov, Anton"]
[WhiteFideId "13509373"]
[BlackFideId "14105730"]
[WhiteElo "2284"]
[BlackElo "2638"]
[Result "0-1"]
[Round "02"]
[TimeControl "180+2"]
[Date "2023.04.11"]
[WhiteClock "0:00:08"]
[BlackClock "0:00:48"]

1. e4 {[%clk 0:02:56]}  c5 {[%clk 0:02:58]} 2. Nf3 {[%clk 0:02:55]}  d6 {[%clk 0:02:58]} 3. d4 {[%clk 0:02:55]}  cxd4 {[%clk 0:02:59]} 4. Nxd4 {[%clk 0:02:55]}  Nf6 {[%clk 0:02:59]} 5. Nc3 {[%clk 0:02:55]}  a6 {[%clk 0:02:59]} 6. h3 {[%clk 0:02:56]}  Nc6 {[%clk 0:02:59]} 7. Be3 {[%clk 0:02:53]}  e5 {[%clk 0:02:56]} 8. Nb3 {[%clk 0:02:51]}  Be6 {[%clk 0:02:55]} 9. Qf3 {[%clk 0:02:42]}  Be7 {[%clk 0:02:47]} 10. O-O-O {[%clk 0:02:40]}  O-O {[%clk 0:02:43]} 11. g4 {[%clk 0:02:40]}  a5 {[%clk 0:02:43]} 12. Bb5 {[%clk 0:02:26]}  Na7 {[%clk 0:02:36]} 13. Be2 {[%clk 0:02:14]}  Nc6 {[%clk 0:02:01]} 14. Bb5 {[%clk 0:01:51]}  Na7 {[%clk 0:01:58]} 15. Be2 {[%clk 0:01:50]}  b5 {[%clk 0:01:49]} 16. Nxb5 {[%clk 0:01:28]}  Nxb5 {[%clk 0:01:43]} 17. Bxb5 {[%clk 0:01:28]}  Qc7 {[%clk 0:01:37]} 18. g5 {[%clk 0:00:57]}  Rfc8 {[%clk 0:01:34]} 19. c3 {[%clk 0:00:41]}  Nd7 {[%clk 0:01:26]} 20. Na1 {[%clk 0:00:33]}  Bxa2 {[%clk 0:01:20]} 21. Ba4 {[%clk 0:00:26]}  Rab8 {[%clk 0:01:16]} 22. Rd2 {[%clk 0:00:20]}  Be6 {[%clk 0:01:07]} 23. h4 {[%clk 0:00:19]}  Nb6 {[%clk 0:00:59]} 24. Bxb6 {[%clk 0:00:17]}  Qxb6 {[%clk 0:01:00]} 25. Rhd1 {[%clk 0:00:15]}  g6 {[%clk 0:00:49]} 26. Qe2 {[%clk 0:00:11]}  Rxc3+ {[%clk 0:00:48]} 27. Rc2 {[%clk 0:00:09]}  Rxc2+ {[%clk 0:00:48]} 28. Qxc2 {[%clk 0:00:08]}  Rc8 {[%clk 0:00:48]} 0-1


[Site "https://www.chess.com"]

[Event "Titled Tuesday Blitz April 11 Early 2023"]
[White "Oparin, Grigoriy"]
[Black "Domingo Nunez, Ruben"]
[WhiteFideId "24125890"]
[BlackFideId "22245570"]
[WhiteElo "2647"]
[BlackElo "2404"]
[Result "1-0"]
[Round "02"]
[TimeControl "180+2"]
[Date "2023.04.11"]
[WhiteClock "0:01:24"]
[BlackClock "0:00:02"]

1. e4 {[%clk 0:03:00]}  Nf6 {[%clk 0:02:58]} 2. e5 {[%clk 0:03:00]}  Nd5 {[%clk 0:02:59]} 3. d4 {[%clk 0:03:00]}  d6 {[%clk 0:02:59]} 4. Nf3 {[%clk 0:03:01]}  c6 {[%clk 0:03:00]} 5. Be2 {[%clk 0:02:58]}  Bf5 {[%clk 0:02:56]} 6. O-O {[%clk 0:02:59]}  e6 {[%clk 0:02:55]} 7. c4 {[%clk 0:02:58]}  Nc7 {[%clk 0:02:54]} 8. Nc3 {[%clk 0:02:57]}  dxe5 {[%clk 0:02:54]} 9. dxe5 {[%clk 0:02:54]}  Qxd1 {[%clk 0:02:54]} 10. Rxd1 {[%clk 0:02:54]}  Bb4 {[%clk 0:02:54]} 11. Bd2 {[%clk 0:02:50]}  Be7 {[%clk 0:02:47]} 12. a3 {[%clk 0:02:47]}  Nd7 {[%clk 0:02:32]} 13. h3 {[%clk 0:02:46]}  Nc5 {[%clk 0:02:28]} 14. Nd4 {[%clk 0:02:40]}  Bg6 {[%clk 0:02:28]} 15. b4 {[%clk 0:02:39]}  Ne4 {[%clk 0:01:38]} 16. Nxe4 {[%clk 0:02:38]}  Bxe4 {[%clk 0:01:39]} 17. Bc3 {[%clk 0:02:33]}  O-O {[%clk 0:01:28]} 18. Rd2 {[%clk 0:02:31]}  Rfd8 {[%clk 0:01:27]} 19. Rad1 {[%clk 0:02:31]}  Bg5 {[%clk 0:01:26]} 20. Rb2 {[%clk 0:02:28]}  c5 {[%clk 0:01:09]} 21. bxc5 {[%clk 0:02:23]}  Na6 {[%clk 0:01:10]} 22. h4 {[%clk 0:02:00]}  Bxh4 {[%clk 0:00:24]} 23. f3 {[%clk 0:02:00]}  Bg6 {[%clk 0:00:24]} 24. c6 {[%clk 0:01:56]}  bxc6 {[%clk 0:00:25]} 25. Nxc6 {[%clk 0:01:57]}  Rdc8 {[%clk 0:00:25]} 26. Na5 {[%clk 0:01:48]}  Nc5 {[%clk 0:00:23]} 27. Bd4 {[%clk 0:01:45]}  Na4 {[%clk 0:00:10]} 28. Rb4 {[%clk 0:01:43]}  Nb6 {[%clk 0:00:11]} 29. Nb7 {[%clk 0:01:39]}  Nd7 {[%clk 0:00:09]} 30. Nd6 {[%clk 0:01:38]}  Rd8 {[%clk 0:00:09]} 31. c5 {[%clk 0:01:38]}  Nb8 {[%clk 0:00:08]} 32. Bb5 {[%clk 0:01:35]}  a6 {[%clk 0:00:08]} 33. Ba4 {[%clk 0:01:35]}  a5 {[%clk 0:00:09]} 34. Rb7 {[%clk 0:01:34]}  Na6 {[%clk 0:00:03]} 35. c6 {[%clk 0:01:34]}  Rf8 {[%clk 0:00:03]} 36. c7 {[%clk 0:01:32]}  f6 {[%clk 0:00:03]} 37. Rc1 {[%clk 0:01:25]}  fxe5 {[%clk 0:00:02]} 38. Bxe5 {[%clk 0:01:26]}  Bg5 {[%clk 0:00:02]} 39. c8=Q {[%clk 0:01:26]}  Bxc1 {[%clk 0:00:02]} 40. Rxg7+ {[%clk 0:01:24]}  Kh8 {[%clk 0:00:02]} 41. Rxg6# {[%clk 0:01:24]} 1-0


[Site "https://www.chess.com"]

[Event "Titled Tuesday Blitz April 11 Early 2023"]
[White "Nguyen, Ngoc Truong Son"]
[Black "benny_aizenberg"]
[WhiteFideId "12401110"]
[WhiteElo "2556"]
[BlackElo "2626"]
[Result "1-0"]
[Round "02"]
[TimeControl "180+2"]
[Date "2023.04.11"]
[WhiteClock "0:00:35"]
[BlackClock "0:00:03"]

1. d4 {[%clk 0:02:57]}  Nf6 {[%clk 0:02:55]} 2. c4 {[%clk 0:02:57]}  e6 {[%clk 0:02:55]} 3. Nc3 {[%clk 0:02:57]}  d5 {[%clk 0:02:55]} 4. cxd5 {[%clk 0:02:56]}  exd5 {[%clk 0:02:53]} 5. Bg5 {[%clk 0:02:55]}  c6 {[%clk 0:02:48]} 6. e3 {[%clk 0:02:54]}  Bf5 {[%clk 0:02:46]} 7. Qf3 {[%clk 0:02:54]}  Bg6 {[%clk 0:02:44]} 8. Bxf6 {[%clk 0:02:52]}  Qxf6 {[%clk 0:02:39]} 9. Qxf6 {[%clk 0:02:51]}  gxf6 {[%clk 0:02:39]} 10. Nf3 {[%clk 0:02:46]}  Nd7 {[%clk 0:02:27]} 11. Nh4 {[%clk 0:02:40]}  a5 {[%clk 0:02:26]} 12. f4 {[%clk 0:02:37]}  f5 {[%clk 0:02:18]} 13. Bd3 {[%clk 0:02:35]}  Nf6 {[%clk 0:02:09]} 14. Bxf5 {[%clk 0:02:28]}  Be7 {[%clk 0:02:04]} 15. Bxg6 {[%clk 0:02:24]}  hxg6 {[%clk 0:02:03]} 16. Nf3 {[%clk 0:02:25]}  c5 {[%clk 0:01:39]} 17. O-O-O {[%clk 0:02:08]}  c4 {[%clk 0:01:37]} 18. Rhe1 {[%clk 0:02:06]}  Bb4 {[%clk 0:01:18]} 19. h3 {[%clk 0:01:51]}  Ke7 {[%clk 0:01:11]} 20. Nd2 {[%clk 0:01:49]}  Rh4 {[%clk 0:01:01]} 21. e4 {[%clk 0:01:46]}  Bxc3 {[%clk 0:01:00]} 22. bxc3 {[%clk 0:01:33]}  Rxf4 {[%clk 0:00:56]} 23. exd5+ {[%clk 0:01:32]}  Kd7 {[%clk 0:00:55]} 24. Nxc4 {[%clk 0:01:30]}  Nxd5 {[%clk 0:00:55]} 25. Re5 {[%clk 0:01:30]}  Nxc3 {[%clk 0:00:31]} 26. Rde1 {[%clk 0:01:04]}  Ra6 {[%clk 0:00:18]} 27. Kb2 {[%clk 0:01:02]}  Na4+ {[%clk 0:00:14]} 28. Kb3 {[%clk 0:01:02]}  Nb6 {[%clk 0:00:14]} 29. Re7+ {[%clk 0:00:58]}  Kc6 {[%clk 0:00:13]} 30. Ne5+ {[%clk 0:00:47]}  Kb5 {[%clk 0:00:13]} 31. Rxb7 {[%clk 0:00:42]}  a4+ {[%clk 0:00:12]} 32. Kc3 {[%clk 0:00:41]}  Ka5 {[%clk 0:00:07]} 33. Rb1 {[%clk 0:00:37]}  Nd5+ {[%clk 0:00:05]} 34. Kd3 {[%clk 0:00:36]}  Rb6 {[%clk 0:00:04]} 35. Ra7+ {[%clk 0:00:35]}  Ra6 {[%clk 0:00:03]} 36. Nc4# {[%clk 0:00:35]} 1-0


[Site "https://www.chess.com"]

[Event "Titled Tuesday Blitz April 11 Early 2023"]
[White "Williams, Simon K"]
[Black "Steinberg, Nitzan"]
[WhiteFideId "404454"]
[BlackFideId "2801795"]
[WhiteElo "2468"]
[BlackElo "2486"]
[Result "1-0"]
[Round "02"]
[TimeControl "180+2"]
[Date "2023.04.11"]
[WhiteClock "0:00:20"]
[BlackClock "0:00:04"]

1. d4 {[%clk 0:03:00]}  Nf6 {[%clk 0:02:59]} 2. c4 {[%clk 0:03:00]}  e6 {[%clk 0:02:59]} 3. Nf3 {[%clk 0:03:00]}  d5 {[%clk 0:02:58]} 4. Nc3 {[%clk 0:02:59]}  Bb4 {[%clk 0:02:59]} 5. Qc2 {[%clk 0:02:51]}  O-O {[%clk 0:02:57]} 6. Bg5 {[%clk 0:02:49]}  Nbd7 {[%clk 0:02:57]} 7. e3 {[%clk 0:02:48]}  c5 {[%clk 0:02:57]} 8. cxd5 {[%clk 0:02:47]}  exd5 {[%clk 0:02:57]} 9. Bd3 {[%clk 0:02:47]}  h6 {[%clk 0:02:53]} 10. Bh4 {[%clk 0:02:46]}  Qa5 {[%clk 0:02:53]} 11. O-O {[%clk 0:02:46]}  Bxc3 {[%clk 0:02:46]} 12. bxc3 {[%clk 0:02:45]}  c4 {[%clk 0:02:47]} 13. Bf5 {[%clk 0:02:44]}  Re8 {[%clk 0:02:47]} 14. Nd2 {[%clk 0:02:44]}  Qa6 {[%clk 0:02:26]} 15. a4 {[%clk 0:02:36]}  Nf8 {[%clk 0:02:25]} 16. Rfb1 {[%clk 0:02:24]}  N8h7 {[%clk 0:02:04]} 17. Rb5 {[%clk 0:02:11]}  Qc6 {[%clk 0:01:51]} 18. Rc5 {[%clk 0:02:04]}  Bxf5 {[%clk 0:01:47]} 19. Qxf5 {[%clk 0:02:01]}  Qe6 {[%clk 0:01:48]} 20. Qxe6 {[%clk 0:01:44]}  Rxe6 {[%clk 0:01:48]} 21. Rb1 {[%clk 0:01:34]}  b6 {[%clk 0:01:30]} 22. Rc7 {[%clk 0:01:31]}  g5 {[%clk 0:01:27]} 23. Bg3 {[%clk 0:01:31]}  Nf8 {[%clk 0:01:24]} 24. h4 {[%clk 0:01:20]}  Ne8 {[%clk 0:01:23]} 25. Rb7 {[%clk 0:01:16]}  Rc6 {[%clk 0:01:12]} 26. hxg5 {[%clk 0:01:14]}  hxg5 {[%clk 0:01:12]} 27. e4 {[%clk 0:01:13]}  Nf6 {[%clk 0:01:06]} 28. Rb5 {[%clk 0:01:04]}  dxe4 {[%clk 0:00:47]} 29. Rxg5+ {[%clk 0:01:03]}  Ng6 {[%clk 0:00:48]} 30. Be5 {[%clk 0:00:56]}  Nh7 {[%clk 0:00:41]} 31. Rh5 {[%clk 0:00:47]}  a6 {[%clk 0:00:31]} 32. Nxe4 {[%clk 0:00:46]}  Re8 {[%clk 0:00:31]} 33. g3 {[%clk 0:00:40]}  Rce6 {[%clk 0:00:23]} 34. Rxh7 {[%clk 0:00:36]}  Kxh7 {[%clk 0:00:19]} 35. Ng5+ {[%clk 0:00:30]}  Kh6 {[%clk 0:00:20]} 36. Nxe6 {[%clk 0:00:30]}  Rxe6 {[%clk 0:00:21]} 37. Rxf7 {[%clk 0:00:27]}  b5 {[%clk 0:00:17]} 38. axb5 {[%clk 0:00:27]}  axb5 {[%clk 0:00:18]} 39. f4 {[%clk 0:00:27]}  b4 {[%clk 0:00:10]} 40. cxb4 {[%clk 0:00:27]}  Ra6 {[%clk 0:00:04]} 41. Rc7 {[%clk 0:00:26]}  Ra3 {[%clk 0:00:02]} 42. Kg2 {[%clk 0:00:25]}  c3 {[%clk 0:00:02]} 43. b5 {[%clk 0:00:25]}  Ra2+ {[%clk 0:00:03]} 44. Kf3 {[%clk 0:00:25]}  c2 {[%clk 0:00:04]} 45. b6 {[%clk 0:00:24]}  Ne7 {[%clk 0:00:04]} 46. Ke4 {[%clk 0:00:23]}  Kg6 {[%clk 0:00:02]} 47. b7 {[%clk 0:00:23]}  Rb2 {[%clk 0:00:02]} 48. Rxc2 {[%clk 0:00:22]}  Rxb7 {[%clk 0:00:02]} 49. Rc7 {[%clk 0:00:22]}  Rxc7 {[%clk 0:00:02]} 50. Bxc7 {[%clk 0:00:22]}  Kf7 {[%clk 0:00:02]} 51. g4 {[%clk 0:00:22]}  Ke6 {[%clk 0:00:02]} 52. Be5 {[%clk 0:00:22]}  Kd7 {[%clk 0:00:01]} 53. d5 {[%clk 0:00:22]}  Nc8 {[%clk 0:00:01]} 54. f5 {[%clk 0:00:22]}  Nb6 {[%clk 0:00:02]} 55. g5 {[%clk 0:00:22]}  Nc4 {[%clk 0:00:02]} 56. g6 {[%clk 0:00:22]}  Ke7 {[%clk 0:00:03]} 57. f6+ {[%clk 0:00:22]}  Kf8 {[%clk 0:00:03]} 58. d6 {[%clk 0:00:21]}  Ke8 {[%clk 0:00:03]} 59. f7+ {[%clk 0:00:21]}  Kf8 {[%clk 0:00:04]} 60. d7 {[%clk 0:00:20]} 1-0


[Site "https://www.chess.com"]

[Event "Titled Tuesday Blitz April 11 Early 2023"]
[White "Indjic, Aleksandar"]
[Black "Safin, Robert"]
[WhiteFideId "911925"]
[BlackFideId "34189120"]
[WhiteElo "2614"]
[BlackElo "2245"]
[Result "1-0"]
[Round "02"]
[TimeControl "180+2"]
[Date "2023.04.11"]
[WhiteClock "0:02:49"]
[BlackClock "0:00:14"]

1. d4 {[%clk 0:03:00]}  Nf6 {[%clk 0:02:58]} 2. Nf3 {[%clk 0:03:01]}  e6 {[%clk 0:02:48]} 3. Bg5 {[%clk 0:03:01]}  c5 {[%clk 0:02:31]} 4. d5 {[%clk 0:03:00]}  h6 {[%clk 0:02:08]} 5. Bxf6 {[%clk 0:02:58]}  Qxf6 {[%clk 0:02:08]} 6. Nc3 {[%clk 0:02:59]}  d6 {[%clk 0:02:03]} 7. e4 {[%clk 0:02:59]}  e5 {[%clk 0:01:48]} 8. Bb5+ {[%clk 0:02:58]}  Nd7 {[%clk 0:01:43]} 9. a4 {[%clk 0:02:58]}  h5 {[%clk 0:01:27]} 10. h4 {[%clk 0:02:56]}  g6 {[%clk 0:01:26]} 11. Nd2 {[%clk 0:02:55]}  a6 {[%clk 0:01:17]} 12. Bd3 {[%clk 0:02:53]}  Bh6 {[%clk 0:01:12]} 13. Nc4 {[%clk 0:02:53]}  Ke7 {[%clk 0:00:47]} 14. a5 {[%clk 0:02:52]}  Rb8 {[%clk 0:00:42]} 15. Na4 {[%clk 0:02:51]}  Nf8 {[%clk 0:00:36]} 16. b4 {[%clk 0:02:50]}  cxb4 {[%clk 0:00:24]} 17. Rb1 {[%clk 0:02:50]}  Bd7 {[%clk 0:00:15]} 18. Nab6 {[%clk 0:02:49]}  Bb5 {[%clk 0:00:14]} 19. Rxb4 {[%clk 0:02:49]} 1-0


[Site "https://www.chess.com"]